Workbook

Sheet Delegate
A3: Position: | C3: DELEGATE | D3: votes | E3: percentage | G3: =MAX(F4:F12) -> 1 | H3: =IF(G3="","",IF(G3-1<=0,"",G3-1)) ->  | Q3: =IF(P3="","",IF(P3-1<=0,"",P3-1)) -> 
C4: Melissa R. | E4: =IF(D$13 = 0, 0, D4/D$13) -> 0 | F4: =IF(ISBLANK(C4),"",1) -> 1 | G4: =IF(ISBLANK($C4),"",IF(ISNA(RANK($D4,$D$4:$D$12,0)),"",IF(RANK($D4,$D$4:$D$12,0)<=G$3,G$3,""))) ->  | H4: =IF(ISBLANK($C4),"",IF(ISNA(RANK($D4,$D$4:$D$12,0)),"",IF(RANK($D4,$D$4:$D$12,0)<=H$3,H$3,""))) ->  | I4: =IF(ISBLANK($C4),"",IF(ISNA(RANK($D4,$D$4:$D$12,0)),"",IF(RANK($D4,$D$4:$D$12,0)<=I$3,I$3,""))) -> 
E5: 0 | F5: =IF(ISBLANK(C5),"",MAX(F$4:F4)+1) ->  | G5: =IF(ISBLANK($C5),"",IF(ISNA(RANK($D5,$D$4:$D$12,0)),"",IF(RANK($D5,$D$4:$D$12,0)<=G$3,G$3,""))) ->  | H5: =IF(ISBLANK($C5),"",IF(ISNA(RANK($D5,$D$4:$D$12,0)),"",IF(RANK($D5,$D$4:$D$12,0)<=H$3,H$3,""))) -> 
E6: 0 | F6: =IF(ISBLANK(C6),"",MAX(F$4:F5)+1) ->  | G6: =IF(ISBLANK($C6),"",IF(ISNA(RANK($D6,$D$4:$D$12,0)),"",IF(RANK($D6,$D$4:$D$12,0)<=G$3,G$3,""))) -> 
E7: 0 | F7: =IF(ISBLANK(C7),"",MAX(F$4:F6)+1) -> 
E8: 0 | F8: =IF(ISBLANK(C8),"",MAX(F$4:F7)+1) -> 
E9: 0 | F9: =IF(ISBLANK(C9),"",MAX(F$4:F8)+1) -> 
E10: 0 | F10: =IF(ISBLANK(C10),"",MAX(F$4:F9)+1) -> 
E11: 0 | F11: =IF(ISBLANK(C11),"",MAX(F$4:F10)+1) -> 
E12: 0 | F12: =IF(ISBLANK(C12),"",MAX(F$4:F11)+1) -> 
B13: Total: | D13: =SUM(D4:D12) -> 0 | E13: =SUM(E4:E12) -> 0
C14: 1/5 of the vote => | D14: =D13 * 0.2 -> 0 | E14: 0.2
C15: 1/3 of the vote => | D15: =D13 * 0.33333333 -> 0 | E15: 0.3333
C16: 2/3 of the vote => | D16: =D13 * 0.66666666 -> 0 | E16: 0.6666

Sheet Alt-Delegate
B3: Position: | C3: ALT - DELEGATE | D3: votes | E3: percentage | G3: =MAX(F4:F12) -> 6 | H3: =IF(G3="","",IF(G3-1<=0,"",G3-1)) -> 5 | I3: 4 | J3: 3 | K3: 2 | L3: 1
C4: RON C. | D4: 79 | E4: =IF(D$13 = 0, 0, D4/D$13) -> 0.7314814815 | F4: =IF(ISBLANK(C4),"",1) -> 1 | G4: =IF(ISBLANK($C4),"",IF(ISNA(RANK($D4,$D$4:$D$12,0)),"",IF(RANK($D4,$D$4:$D$12,0)<=G$3,G$3,""))) -> 6 | H4: =IF(ISBLANK($C4),"",IF(ISNA(RANK($D4,$D$4:$D$12,0)),"",IF(RANK($D4,$D$4:$D$12,0)<=H$3,H$3,""))) -> 5 | I4: =IF(ISBLANK($C4),"",IF(ISNA(RANK($D4,$D$4:$D$12,0)),"",IF(RANK($D4,$D$4:$D$12,0)<=I$3,I$3,""))) -> 4 | J4: 3 | K4: 2 | L4: 1
C5: TROY B. | D5: 18 | E5: 0.1666666667 | F5: =IF(ISBLANK(C5),"",MAX(F$4:F4)+1) -> 2 | G5: =IF(ISBLANK($C5),"",IF(ISNA(RANK($D5,$D$4:$D$12,0)),"",IF(RANK($D5,$D$4:$D$12,0)<=G$3,G$3,""))) -> 6 | H5: =IF(ISBLANK($C5),"",IF(ISNA(RANK($D5,$D$4:$D$12,0)),"",IF(RANK($D5,$D$4:$D$12,0)<=H$3,H$3,""))) -> 5 | I5: 4 | J5: 3 | K5: 2
C6: JIM K. | D6: 2 | E6: 0.01851851852 | F6: =IF(ISBLANK(C6),"",MAX(F$4:F5)+1) -> 3 | G6: =IF(ISBLANK($C6),"",IF(ISNA(RANK($D6,$D$4:$D$12,0)),"",IF(RANK($D6,$D$4:$D$12,0)<=G$3,G$3,""))) -> 6 | H6: 5 | I6: 4
C7: GARY S. | D7: 6 | E7: 0.05555555556 | F7: =IF(ISBLANK(C7),"",MAX(F$4:F6)+1) -> 4 | G7: 6 | H7: 5 | I7: 4 | J7: 3
C8: KIM R. | D8: 1 | E8: 0.009259259259 | F8: =IF(ISBLANK(C8),"",MAX(F$4:F7)+1) -> 5 | G8: 6
C9: TOM K. | D9: 2 | E9: 0.01851851852 | F9: =IF(ISBLANK(C9),"",MAX(F$4:F8)+1) -> 6 | G9: 6 | H9: 5 | I9: 4
E10: 0 | F10: =IF(ISBLANK(C10),"",MAX(F$4:F9)+1) -> 
E11: =IF(D$13 = 0, 0, D11/D$13) -> 0 | F11: =IF(ISBLANK(C11),"",MAX(F$4:F10)+1) -> 
E12: =IF(D$13 = 0, 0, D12/D$13) -> 0 | F12: =IF(ISBLANK(C12),"",MAX(F$4:F11)+1) -> 
B13: Total: | D13: =SUM(D4:D12) -> 108 | E13: =SUM(E4:E12) -> 1
C14: 1/5 of the vote => | D14: =D13 * 0.2 -> 21.6 | E14: 0.2
C15: 1/3 of the vote => | D15: =D13 * 0.33333333 -> 35.99999964 | E15: 0.3333
C16: 2/3 of the vote => | D16: =D13 * 0.66666666 -> 71.99999928 | E16: 0.6666

Sheet Chair
B3: Position: | C3: CHAIR | D3: votes | E3: percentage | G3: =MAX(F4:F12) -> 7 | H3: =IF(G3="","",IF(G3-1<=0,"",G3-1)) -> 6 | I3: 5 | J3: 4 | K3: 3 | L3: 2 | M3: 1
C4: TROY B. | D4: 76 | E4: =IF(D$13 = 0, 0, D4/D$13) -> 0.7378640777 | F4: =IF(ISBLANK(C4),"",1) -> 1 | G4: =IF(ISBLANK($C4),"",IF(ISNA(RANK($D4,$D$4:$D$12,0)),"",IF(RANK($D4,$D$4:$D$12,0)<=G$3,G$3,""))) -> 7 | H4: =IF(ISBLANK($C4),"",IF(ISNA(RANK($D4,$D$4:$D$12,0)),"",IF(RANK($D4,$D$4:$D$12,0)<=H$3,H$3,""))) -> 6 | I4: =IF(ISBLANK($C4),"",IF(ISNA(RANK($D4,$D$4:$D$12,0)),"",IF(RANK($D4,$D$4:$D$12,0)<=I$3,I$3,""))) -> 5 | J4: 4 | K4: 3 | L4: 2 | M4: 1
C5: KRIS H. | D5: 10 | E5: 0.09708737864 | F5: =IF(ISBLANK(C5),"",MAX(F$4:F4)+1) -> 2 | G5: =IF(ISBLANK($C5),"",IF(ISNA(RANK($D5,$D$4:$D$12,0)),"",IF(RANK($D5,$D$4:$D$12,0)<=G$3,G$3,""))) -> 7 | H5: =IF(ISBLANK($C5),"",IF(ISNA(RANK($D5,$D$4:$D$12,0)),"",IF(RANK($D5,$D$4:$D$12,0)<=H$3,H$3,""))) -> 6 | I5: 5 | J5: 4 | K5: 3 | L5: 2
C6: DANIEL S. | D6: 4 | E6: 0.03883495146 | F6: =IF(ISBLANK(C6),"",MAX(F$4:F5)+1) -> 3 | G6: =IF(ISBLANK($C6),"",IF(ISNA(RANK($D6,$D$4:$D$12,0)),"",IF(RANK($D6,$D$4:$D$12,0)<=G$3,G$3,""))) -> 7 | H6: 6 | I6: 5 | J6: 4
C7: JIM K. | D7: 4 | E7: 0.03883495146 | F7: =IF(ISBLANK(C7),"",MAX(F$4:F6)+1) -> 4 | G7: 7 | H7: 6 | I7: 5 | J7: 4
C8: GARY S. | D8: 5 | E8: 0.04854368932 | F8: =IF(ISBLANK(C8),"",MAX(F$4:F7)+1) -> 5 | G8: 7 | H8: 6 | I8: 5 | J8: 4 | K8: 3
C9: KIM R. | D9: 2 | E9: 0.01941747573 | F9: =IF(ISBLANK(C9),"",MAX(F$4:F8)+1) -> 6 | G9: 7 | H9: 6
C10: TOM K. | D10: 2 | E10: 0.01941747573 | F10: =IF(ISBLANK(C10),"",MAX(F$4:F9)+1) -> 7 | G10: 7 | H10: 6
E11: =IF(D$13 = 0, 0, D11/D$13) -> 0 | F11: =IF(ISBLANK(C11),"",MAX(F$4:F10)+1) -> 
E12: =IF(D$13 = 0, 0, D12/D$13) -> 0 | F12: =IF(ISBLANK(C12),"",MAX(F$4:F11)+1) -> 
B13: Total: | D13: =SUM(D4:D12) -> 103 | E13: =SUM(E4:E12) -> 1
C14: 1/5 of the vote => | D14: =D13 * 0.2 -> 20.6 | E14: 0.2
C15: 1/3 of the vote => | D15: =D13 * 0.33333333 -> 34.33333299 | E15: 0.3333
C16: 2/3 of the vote => | D16: =D13 * 0.66666666 -> 68.66666598 | E16: 0.6666

Sheet Alt-Chair
B3: Position: | C3: ALT - CHAIR | D3: votes | E3: percentage | G3: =MAX(F4:F12) -> 7 | H3: =IF(G3="","",IF(G3-1<=0,"",G3-1)) -> 6 | I3: 5 | J3: 4 | K3: 3 | L3: 2 | M3: 1
C4: MELANIE M. | D4: 22 | E4: =IF(D$13 = 0, 0, D4/D$13) -> 0.2391304348 | F4: =IF(ISBLANK(C4),"",1) -> 1 | G4: =IF(ISBLANK($C4),"",IF(ISNA(RANK($D4,$D$4:$D$12,0)),"",IF(RANK($D4,$D$4:$D$12,0)<=G$3,G$3,""))) -> 7 | H4: =IF(ISBLANK($C4),"",IF(ISNA(RANK($D4,$D$4:$D$12,0)),"",IF(RANK($D4,$D$4:$D$12,0)<=H$3,H$3,""))) -> 6 | I4: =IF(ISBLANK($C4),"",IF(ISNA(RANK($D4,$D$4:$D$12,0)),"",IF(RANK($D4,$D$4:$D$12,0)<=I$3,I$3,""))) -> 5 | J4: 4 | K4: 3 | L4: 2
C5: KRIS H. | D5: 39 | E5: 0.4239130435 | F5: =IF(ISBLANK(C5),"",MAX(F$4:F4)+1) -> 2 | G5: =IF(ISBLANK($C5),"",IF(ISNA(RANK($D5,$D$4:$D$12,0)),"",IF(RANK($D5,$D$4:$D$12,0)<=G$3,G$3,""))) -> 7 | H5: =IF(ISBLANK($C5),"",IF(ISNA(RANK($D5,$D$4:$D$12,0)),"",IF(RANK($D5,$D$4:$D$12,0)<=H$3,H$3,""))) -> 6 | I5: 5 | J5: 4 | K5: 3 | L5: 2 | M5: 1
C6: DANIEL S. | D6: 11 | E6: 0.1195652174 | F6: =IF(ISBLANK(C6),"",MAX(F$4:F5)+1) -> 3 | G6: =IF(ISBLANK($C6),"",IF(ISNA(RANK($D6,$D$4:$D$12,0)),"",IF(RANK($D6,$D$4:$D$12,0)<=G$3,G$3,""))) -> 7 | H6: 6 | I6: 5 | J6: 4 | K6: 3
C7: JIM K. | D7: 11 | E7: 0.1195652174 | F7: =IF(ISBLANK(C7),"",MAX(F$4:F6)+1) -> 4 | G7: 7 | H7: 6 | I7: 5 | J7: 4 | K7: 3
C8: GARY S. | D8: 5 | E8: 0.05434782609 | F8: =IF(ISBLANK(C8),"",MAX(F$4:F7)+1) -> 5 | G8: 7 | H8: 6 | I8: 5
C9: KIM R. | D9: 4 | E9: 0.04347826087 | F9: =IF(ISBLANK(C9),"",MAX(F$4:F8)+1) -> 6 | G9: 7 | H9: 6
C10: TOM K. | E10: 0 | F10: =IF(ISBLANK(C10),"",MAX(F$4:F9)+1) -> 7
E11: =IF(D$13 = 0, 0, D11/D$13) -> 0 | F11: =IF(ISBLANK(C11),"",MAX(F$4:F10)+1) -> 
E12: =IF(D$13 = 0, 0, D12/D$13) -> 0 | F12: =IF(ISBLANK(C12),"",MAX(F$4:F11)+1) -> 
B13: Total: | D13: =SUM(D4:D12) -> 92 | E13: =SUM(E4:E12) -> 1
C14: 1/5 of the vote => | D14: =D13 * 0.2 -> 18.4 | E14: 0.2
C15: 1/3 of the vote => | D15: =D13 * 0.33333333 -> 30.66666636 | E15: 0.3333
C16: 2/3 of the vote => | D16: =D13 * 0.66666666 -> 61.33333272 | E16: 0.6666

Sheet Secretary
B3: Position: | C3: SECRETARY | D3: votes | E3: percentage | G3: =MAX(F4:F12) -> 2 | H3: =IF(G3="","",IF(G3-1<=0,"",G3-1)) -> 1
C4: DANIEL S. | D4: 46 | E4: =IF(D$13 = 0, 0, D4/D$13) -> 0.5679012346 | F4: =IF(ISBLANK(C4),"",1) -> 1 | G4: =IF(ISBLANK($C4),"",IF(ISNA(RANK($D4,$D$4:$D$12,0)),"",IF(RANK($D4,$D$4:$D$12,0)<=G$3,G$3,""))) -> 2 | H4: =IF(ISBLANK($C4),"",IF(ISNA(RANK($D4,$D$4:$D$12,0)),"",IF(RANK($D4,$D$4:$D$12,0)<=H$3,H$3,""))) -> 1 | I4: =IF(ISBLANK($C4),"",IF(ISNA(RANK($D4,$D$4:$D$12,0)),"",IF(RANK($D4,$D$4:$D$12,0)<=I$3,I$3,""))) -> 
C5: JIM K. (WINNER BY Hat) | D5: 35 | E5: 0.4320987654 | F5: =IF(ISBLANK(C5),"",MAX(F$4:F4)+1) -> 2 | G5: =IF(ISBLANK($C5),"",IF(ISNA(RANK($D5,$D$4:$D$12,0)),"",IF(RANK($D5,$D$4:$D$12,0)<=G$3,G$3,""))) -> 2 | H5: =IF(ISBLANK($C5),"",IF(ISNA(RANK($D5,$D$4:$D$12,0)),"",IF(RANK($D5,$D$4:$D$12,0)<=H$3,H$3,""))) -> 
E6: 0 | F6: =IF(ISBLANK(C6),"",MAX(F$4:F5)+1) ->  | G6: =IF(ISBLANK($C6),"",IF(ISNA(RANK($D6,$D$4:$D$12,0)),"",IF(RANK($D6,$D$4:$D$12,0)<=G$3,G$3,""))) -> 
E7: 0 | F7: =IF(ISBLANK(C7),"",MAX(F$4:F6)+1) -> 
E8: 0 | F8: =IF(ISBLANK(C8),"",MAX(F$4:F7)+1) -> 
E9: 0 | F9: =IF(ISBLANK(C9),"",MAX(F$4:F8)+1) -> 
E10: 0 | F10: =IF(ISBLANK(C10),"",MAX(F$4:F9)+1) -> 
E11: =IF(D$13 = 0, 0, D11/D$13) -> 0 | F11: =IF(ISBLANK(C11),"",MAX(F$4:F10)+1) -> 
E12: =IF(D$13 = 0, 0, D12/D$13) -> 0 | F12: =IF(ISBLANK(C12),"",MAX(F$4:F11)+1) -> 
B13: Total: | D13: =SUM(D4:D12) -> 81 | E13: =SUM(E4:E12) -> 1
C14: 1/5 of the vote => | D14: =D13 * 0.2 -> 16.2 | E14: 0.2
C15: 1/3 of the vote => | D15: =D13 * 0.33333333 -> 26.99999973 | E15: 0.3333
C16: 2/3 of the vote => | D16: =D13 * 0.66666666 -> 53.99999946 | E16: 0.6666

Sheet Alt-Secretary
B3: Position: | C3: ALT - SECRETARY | D3: votes | E3: percentage | G3: =MAX(F4:F12) -> 3 | H3: =IF(G3="","",IF(G3-1<=0,"",G3-1)) -> 2 | I3: 1
C4: LINDA C. | D4: 34 | E4: =IF(D$13 = 0, 0, D4/D$13) -> 0.4 | F4: =IF(ISBLANK(C4),"",1) -> 1 | G4: =IF(ISBLANK($C4),"",IF(ISNA(RANK($D4,$D$4:$D$12,0)),"",IF(RANK($D4,$D$4:$D$12,0)<=G$3,G$3,""))) -> 3 | H4: =IF(ISBLANK($C4),"",IF(ISNA(RANK($D4,$D$4:$D$12,0)),"",IF(RANK($D4,$D$4:$D$12,0)<=H$3,H$3,""))) -> 2 | I4: =IF(ISBLANK($C4),"",IF(ISNA(RANK($D4,$D$4:$D$12,0)),"",IF(RANK($D4,$D$4:$D$12,0)<=I$3,I$3,""))) -> 
C5: DANIEL S. | D5: 44 | E5: 0.5176470588 | F5: =IF(ISBLANK(C5),"",MAX(F$4:F4)+1) -> 2 | G5: =IF(ISBLANK($C5),"",IF(ISNA(RANK($D5,$D$4:$D$12,0)),"",IF(RANK($D5,$D$4:$D$12,0)<=G$3,G$3,""))) -> 3 | H5: =IF(ISBLANK($C5),"",IF(ISNA(RANK($D5,$D$4:$D$12,0)),"",IF(RANK($D5,$D$4:$D$12,0)<=H$3,H$3,""))) -> 2 | I5: 1
C6: KIM R. | D6: 7 | E6: 0.08235294118 | F6: =IF(ISBLANK(C6),"",MAX(F$4:F5)+1) -> 3 | G6: =IF(ISBLANK($C6),"",IF(ISNA(RANK($D6,$D$4:$D$12,0)),"",IF(RANK($D6,$D$4:$D$12,0)<=G$3,G$3,""))) -> 3
E7: 0 | F7: =IF(ISBLANK(C7),"",MAX(F$4:F6)+1) -> 
E8: 0 | F8: =IF(ISBLANK(C8),"",MAX(F$4:F7)+1) -> 
E9: 0 | F9: =IF(ISBLANK(C9),"",MAX(F$4:F8)+1) -> 
E10: 0 | F10: =IF(ISBLANK(C10),"",MAX(F$4:F9)+1) -> 
E11: =IF(D$13 = 0, 0, D11/D$13) -> 0 | F11: =IF(ISBLANK(C11),"",MAX(F$4:F10)+1) -> 
E12: =IF(D$13 = 0, 0, D12/D$13) -> 0 | F12: =IF(ISBLANK(C12),"",MAX(F$4:F11)+1) -> 
B13: Total: | D13: =SUM(D4:D12) -> 85 | E13: =SUM(E4:E12) -> 1
C14: 1/5 of the vote => | D14: =D13 * 0.2 -> 17 | E14: 0.2
C15: 1/3 of the vote => | D15: =D13 * 0.33333333 -> 28.33333305 | E15: 0.3333
C16: 2/3 of the vote => | D16: =D13 * 0.66666666 -> 56.6666661 | E16: 0.6666

Sheet Treasurer
B3: Position: | C3: TREASURER | D3: votes | E3: percentage | G3: =MAX(F4:F12) -> 3 | H3: =IF(G3="","",IF(G3-1<=0,"",G3-1)) -> 2 | I3: 1
C4: DAVE P. | D4: 66 | E4: =IF(D$13 = 0, 0, D4/D$13) -> 0.8048780488 | F4: =IF(ISBLANK(C4),"",1) -> 1 | G4: =IF(ISBLANK($C4),"",IF(ISNA(RANK($D4,$D$4:$D$12,0)),"",IF(RANK($D4,$D$4:$D$12,0)<=G$3,G$3,""))) -> 3 | H4: =IF(ISBLANK($C4),"",IF(ISNA(RANK($D4,$D$4:$D$12,0)),"",IF(RANK($D4,$D$4:$D$12,0)<=H$3,H$3,""))) -> 2 | I4: =IF(ISBLANK($C4),"",IF(ISNA(RANK($D4,$D$4:$D$12,0)),"",IF(RANK($D4,$D$4:$D$12,0)<=I$3,I$3,""))) -> 1
C5: KIM R. | D5: 15 | E5: 0.1829268293 | F5: =IF(ISBLANK(C5),"",MAX(F$4:F4)+1) -> 2 | G5: =IF(ISBLANK($C5),"",IF(ISNA(RANK($D5,$D$4:$D$12,0)),"",IF(RANK($D5,$D$4:$D$12,0)<=G$3,G$3,""))) -> 3 | H5: =IF(ISBLANK($C5),"",IF(ISNA(RANK($D5,$D$4:$D$12,0)),"",IF(RANK($D5,$D$4:$D$12,0)<=H$3,H$3,""))) -> 2
C6: TOM K. | D6: 1 | E6: 0.01219512195 | F6: =IF(ISBLANK(C6),"",MAX(F$4:F5)+1) -> 3 | G6: =IF(ISBLANK($C6),"",IF(ISNA(RANK($D6,$D$4:$D$12,0)),"",IF(RANK($D6,$D$4:$D$12,0)<=G$3,G$3,""))) -> 3
E7: 0 | F7: =IF(ISBLANK(C7),"",MAX(F$4:F6)+1) -> 
E8: 0 | F8: =IF(ISBLANK(C8),"",MAX(F$4:F7)+1) -> 
E9: 0 | F9: =IF(ISBLANK(C9),"",MAX(F$4:F8)+1) -> 
E10: 0 | F10: =IF(ISBLANK(C10),"",MAX(F$4:F9)+1) -> 
E11: =IF(D$13 = 0, 0, D11/D$13) -> 0 | F11: =IF(ISBLANK(C11),"",MAX(F$4:F10)+1) -> 
E12: =IF(D$13 = 0, 0, D12/D$13) -> 0 | F12: =IF(ISBLANK(C12),"",MAX(F$4:F11)+1) -> 
B13: Total: | D13: =SUM(D4:D12) -> 82 | E13: =SUM(E4:E12) -> 1
C14: 1/5 of the vote => | D14: =D13 * 0.2 -> 16.4 | E14: 0.2
C15: 1/3 of the vote => | D15: =D13 * 0.33333333 -> 27.33333306 | E15: 0.3333
C16: 2/3 of the vote => | D16: =D13 * 0.66666666 -> 54.66666612 | E16: 0.6666

Sheet Alt-Treasurer
B3: Position: | C3: ALT - TREASURER | D3: votes | E3: percentage | G3: =MAX(F4:F12) -> 2 | H3: =IF(G3="","",IF(G3-1<=0,"",G3-1)) -> 1
C4: KIM R. | D4: 53 | E4: =IF(D$13 = 0, 0, D4/D$13) -> 0.6708860759 | F4: =IF(ISBLANK(C4),"",1) -> 1 | G4: =IF(ISBLANK($C4),"",IF(ISNA(RANK($D4,$D$4:$D$12,0)),"",IF(RANK($D4,$D$4:$D$12,0)<=G$3,G$3,""))) -> 2 | H4: =IF(ISBLANK($C4),"",IF(ISNA(RANK($D4,$D$4:$D$12,0)),"",IF(RANK($D4,$D$4:$D$12,0)<=H$3,H$3,""))) -> 1 | I4: =IF(ISBLANK($C4),"",IF(ISNA(RANK($D4,$D$4:$D$12,0)),"",IF(RANK($D4,$D$4:$D$12,0)<=I$3,I$3,""))) -> 
C5: TOM K. | D5: 26 | E5: 0.3291139241 | F5: =IF(ISBLANK(C5),"",MAX(F$4:F4)+1) -> 2 | G5: =IF(ISBLANK($C5),"",IF(ISNA(RANK($D5,$D$4:$D$12,0)),"",IF(RANK($D5,$D$4:$D$12,0)<=G$3,G$3,""))) -> 2 | H5: =IF(ISBLANK($C5),"",IF(ISNA(RANK($D5,$D$4:$D$12,0)),"",IF(RANK($D5,$D$4:$D$12,0)<=H$3,H$3,""))) -> 
E6: 0 | F6: =IF(ISBLANK(C6),"",MAX(F$4:F5)+1) ->  | G6: =IF(ISBLANK($C6),"",IF(ISNA(RANK($D6,$D$4:$D$12,0)),"",IF(RANK($D6,$D$4:$D$12,0)<=G$3,G$3,""))) -> 
E7: 0 | F7: =IF(ISBLANK(C7),"",MAX(F$4:F6)+1) -> 
E8: 0 | F8: =IF(ISBLANK(C8),"",MAX(F$4:F7)+1) -> 
E9: 0 | F9: =IF(ISBLANK(C9),"",MAX(F$4:F8)+1) -> 
E10: 0 | F10: =IF(ISBLANK(C10),"",MAX(F$4:F9)+1) -> 
E11: =IF(D$13 = 0, 0, D11/D$13) -> 0 | F11: =IF(ISBLANK(C11),"",MAX(F$4:F10)+1) -> 
E12: =IF(D$13 = 0, 0, D12/D$13) -> 0 | F12: =IF(ISBLANK(C12),"",MAX(F$4:F11)+1) -> 
B13: Total: | D13: =SUM(D4:D12) -> 79 | E13: =SUM(E4:E12) -> 1
C14: 1/5 of the vote => | D14: =D13 * 0.2 -> 15.8 | E14: 0.2
C15: 1/3 of the vote => | D15: =D13 * 0.33333333 -> 26.33333307 | E15: 0.3333
C16: 2/3 of the vote => | D16: =D13 * 0.66666666 -> 52.66666614 | E16: 0.6666

Sheet Registrar
B3: Position: | C3: REGISTRAR | D3: votes | E3: percentage | G3: =MAX(F4:F12) -> 3 | H3: =IF(G3="","",IF(G3-1<=0,"",G3-1)) -> 2 | I3: 1
C4: TOM K. | D4: 2 | E4: =IF(D$13 = 0, 0, D4/D$13) -> 0.0253164557 | F4: =IF(ISBLANK(C4),"",1) -> 1 | G4: =IF(ISBLANK($C4),"",IF(ISNA(RANK($D4,$D$4:$D$12,0)),"",IF(RANK($D4,$D$4:$D$12,0)<=G$3,G$3,""))) -> 3 | H4: =IF(ISBLANK($C4),"",IF(ISNA(RANK($D4,$D$4:$D$12,0)),"",IF(RANK($D4,$D$4:$D$12,0)<=H$3,H$3,""))) ->  | I4: =IF(ISBLANK($C4),"",IF(ISNA(RANK($D4,$D$4:$D$12,0)),"",IF(RANK($D4,$D$4:$D$12,0)<=I$3,I$3,""))) -> 
C5: BRAD H. | D5: 19 | E5: 0.2405063291 | F5: =IF(ISBLANK(C5),"",MAX(F$4:F4)+1) -> 2 | G5: =IF(ISBLANK($C5),"",IF(ISNA(RANK($D5,$D$4:$D$12,0)),"",IF(RANK($D5,$D$4:$D$12,0)<=G$3,G$3,""))) -> 3 | H5: =IF(ISBLANK($C5),"",IF(ISNA(RANK($D5,$D$4:$D$12,0)),"",IF(RANK($D5,$D$4:$D$12,0)<=H$3,H$3,""))) -> 2
C6: DEBRA R. | D6: 58 | E6: 0.7341772152 | F6: =IF(ISBLANK(C6),"",MAX(F$4:F5)+1) -> 3 | G6: =IF(ISBLANK($C6),"",IF(ISNA(RANK($D6,$D$4:$D$12,0)),"",IF(RANK($D6,$D$4:$D$12,0)<=G$3,G$3,""))) -> 3 | H6: 2 | I6: 1
E7: 0 | F7: =IF(ISBLANK(C7),"",MAX(F$4:F6)+1) -> 
E8: 0 | F8: =IF(ISBLANK(C8),"",MAX(F$4:F7)+1) -> 
E9: 0 | F9: =IF(ISBLANK(C9),"",MAX(F$4:F8)+1) -> 
E10: 0 | F10: =IF(ISBLANK(C10),"",MAX(F$4:F9)+1) -> 
E11: =IF(D$13 = 0, 0, D11/D$13) -> 0 | F11: =IF(ISBLANK(C11),"",MAX(F$4:F10)+1) -> 
E12: =IF(D$13 = 0, 0, D12/D$13) -> 0 | F12: =IF(ISBLANK(C12),"",MAX(F$4:F11)+1) -> 
B13: Total: | D13: =SUM(D4:D12) -> 79 | E13: =SUM(E4:E12) -> 1
C14: 1/5 of the vote => | D14: =D13 * 0.2 -> 15.8 | E14: 0.2
C15: 1/3 of the vote => | D15: =D13 * 0.33333333 -> 26.33333307 | E15: 0.3333
C16: 2/3 of the vote => | D16: =D13 * 0.66666666 -> 52.66666614 | E16: 0.6666

Sheet Alt-Registrar
B3: Position: | C3: ALT - REGISTRAR | D3: votes | E3: percentage | G3: =MAX(F4:F12) -> 4 | H3: =IF(G3="","",IF(G3-1<=0,"",G3-1)) -> 3 | I3: 2 | J3: 1
C4: BRAD H. | D4: 28 | E4: =IF(D$13 = 0, 0, D4/D$13) -> 0.3684210526 | F4: =IF(ISBLANK(C4),"",1) -> 1 | G4: =IF(ISBLANK($C4),"",IF(ISNA(RANK($D4,$D$4:$D$12,0)),"",IF(RANK($D4,$D$4:$D$12,0)<=G$3,G$3,""))) -> 4 | H4: =IF(ISBLANK($C4),"",IF(ISNA(RANK($D4,$D$4:$D$12,0)),"",IF(RANK($D4,$D$4:$D$12,0)<=H$3,H$3,""))) -> 3 | I4: =IF(ISBLANK($C4),"",IF(ISNA(RANK($D4,$D$4:$D$12,0)),"",IF(RANK($D4,$D$4:$D$12,0)<=I$3,I$3,""))) -> 2 | J4: 1
C5: MELANIE M. | D5: 18 | E5: 0.2368421053 | F5: =IF(ISBLANK(C5),"",MAX(F$4:F4)+1) -> 2 | G5: =IF(ISBLANK($C5),"",IF(ISNA(RANK($D5,$D$4:$D$12,0)),"",IF(RANK($D5,$D$4:$D$12,0)<=G$3,G$3,""))) -> 4 | H5: =IF(ISBLANK($C5),"",IF(ISNA(RANK($D5,$D$4:$D$12,0)),"",IF(RANK($D5,$D$4:$D$12,0)<=H$3,H$3,""))) -> 3 | I5: 2
C6: STEVVI M. | D6: 12 | E6: 0.1578947368 | F6: =IF(ISBLANK(C6),"",MAX(F$4:F5)+1) -> 3 | G6: =IF(ISBLANK($C6),"",IF(ISNA(RANK($D6,$D$4:$D$12,0)),"",IF(RANK($D6,$D$4:$D$12,0)<=G$3,G$3,""))) -> 4
C7: NANCY R. | D7: 18 | E7: 0.2368421053 | F7: =IF(ISBLANK(C7),"",MAX(F$4:F6)+1) -> 4 | G7: 4 | H7: 3 | I7: 2
E8: 0 | F8: =IF(ISBLANK(C8),"",MAX(F$4:F7)+1) -> 
E9: 0 | F9: =IF(ISBLANK(C9),"",MAX(F$4:F8)+1) -> 
E10: 0 | F10: =IF(ISBLANK(C10),"",MAX(F$4:F9)+1) -> 
E11: =IF(D$13 = 0, 0, D11/D$13) -> 0 | F11: =IF(ISBLANK(C11),"",MAX(F$4:F10)+1) -> 
E12: =IF(D$13 = 0, 0, D12/D$13) -> 0 | F12: =IF(ISBLANK(C12),"",MAX(F$4:F11)+1) -> 
B13: Total: | D13: =SUM(D4:D12) -> 76 | E13: =SUM(E4:E12) -> 1
C14: 1/5 of the vote => | D14: =D13 * 0.2 -> 15.2 | E14: 0.2
C15: 1/3 of the vote => | D15: =D13 * 0.33333333 -> 25.33333308 | E15: 0.3333
C16: 2/3 of the vote => | D16: =D13 * 0.66666666 -> 50.66666616 | E16: 0.6666

Sheet Literature
B3: Position: | C3: LITERATURE | D3: votes | E3: percentage | G3: =MAX(F4:F12) -> 2 | H3: =IF(G3="","",IF(G3-1<=0,"",G3-1)) -> 1
C4: KATHLEEN T. | D4: 44 | E4: =IF(D$13 = 0, 0, D4/D$13) -> 0.6666666667 | F4: =IF(ISBLANK(C4),"",1) -> 1 | G4: =IF(ISBLANK($C4),"",IF(ISNA(RANK($D4,$D$4:$D$12,0)),"",IF(RANK($D4,$D$4:$D$12,0)<=G$3,G$3,""))) -> 2 | H4: =IF(ISBLANK($C4),"",IF(ISNA(RANK($D4,$D$4:$D$12,0)),"",IF(RANK($D4,$D$4:$D$12,0)<=H$3,H$3,""))) -> 1 | I4: =IF(ISBLANK($C4),"",IF(ISNA(RANK($D4,$D$4:$D$12,0)),"",IF(RANK($D4,$D$4:$D$12,0)<=I$3,I$3,""))) -> 
C5: BARBRA G. | D5: 22 | E5: 0.3333333333 | F5: =IF(ISBLANK(C5),"",MAX(F$4:F4)+1) -> 2 | G5: =IF(ISBLANK($C5),"",IF(ISNA(RANK($D5,$D$4:$D$12,0)),"",IF(RANK($D5,$D$4:$D$12,0)<=G$3,G$3,""))) -> 2 | H5: =IF(ISBLANK($C5),"",IF(ISNA(RANK($D5,$D$4:$D$12,0)),"",IF(RANK($D5,$D$4:$D$12,0)<=H$3,H$3,""))) -> 
E6: 0 | F6: =IF(ISBLANK(C6),"",MAX(F$4:F5)+1) ->  | G6: =IF(ISBLANK($C6),"",IF(ISNA(RANK($D6,$D$4:$D$12,0)),"",IF(RANK($D6,$D$4:$D$12,0)<=G$3,G$3,""))) -> 
E7: 0 | F7: =IF(ISBLANK(C7),"",MAX(F$4:F6)+1) -> 
E8: 0 | F8: =IF(ISBLANK(C8),"",MAX(F$4:F7)+1) -> 
E9: 0 | F9: =IF(ISBLANK(C9),"",MAX(F$4:F8)+1) -> 
E10: 0 | F10: =IF(ISBLANK(C10),"",MAX(F$4:F9)+1) -> 
E11: =IF(D$13 = 0, 0, D11/D$13) -> 0 | F11: =IF(ISBLANK(C11),"",MAX(F$4:F10)+1) -> 
E12: =IF(D$13 = 0, 0, D12/D$13) -> 0 | F12: =IF(ISBLANK(C12),"",MAX(F$4:F11)+1) -> 
B13: Total: | D13: =SUM(D4:D12) -> 66 | E13: =SUM(E4:E12) -> 1
C14: 1/5 of the vote => | D14: =D13 * 0.2 -> 13.2 | E14: 0.2
C15: 1/3 of the vote => | D15: =D13 * 0.33333333 -> 21.99999978 | E15: 0.3333
C16: 2/3 of the vote => | D16: =D13 * 0.66666666 -> 43.99999956 | E16: 0.6666

Sheet LaVina
B3: Position: | C3: LA VINA | D3: votes | E3: percentage | G3: =MAX(F4:F12) -> 2 | H3: =IF(G3="","",IF(G3-1<=0,"",G3-1)) -> 1
C4: LOUIS P. | D4: 40 | E4: =IF(D$13 = 0, 0, D4/D$13) -> 0.5797101449 | F4: =IF(ISBLANK(C4),"",1) -> 1 | G4: =IF(ISBLANK($C4),"",IF(ISNA(RANK($D4,$D$4:$D$12,0)),"",IF(RANK($D4,$D$4:$D$12,0)<=G$3,G$3,""))) -> 2 | H4: =IF(ISBLANK($C4),"",IF(ISNA(RANK($D4,$D$4:$D$12,0)),"",IF(RANK($D4,$D$4:$D$12,0)<=H$3,H$3,""))) -> 1 | I4: =IF(ISBLANK($C4),"",IF(ISNA(RANK($D4,$D$4:$D$12,0)),"",IF(RANK($D4,$D$4:$D$12,0)<=I$3,I$3,""))) -> 
C5: SEVERIANO M. | D5: 29 | E5: 0.4202898551 | F5: =IF(ISBLANK(C5),"",MAX(F$4:F4)+1) -> 2 | G5: =IF(ISBLANK($C5),"",IF(ISNA(RANK($D5,$D$4:$D$12,0)),"",IF(RANK($D5,$D$4:$D$12,0)<=G$3,G$3,""))) -> 2 | H5: =IF(ISBLANK($C5),"",IF(ISNA(RANK($D5,$D$4:$D$12,0)),"",IF(RANK($D5,$D$4:$D$12,0)<=H$3,H$3,""))) -> 
E6: 0 | F6: =IF(ISBLANK(C6),"",MAX(F$4:F5)+1) ->  | G6: =IF(ISBLANK($C6),"",IF(ISNA(RANK($D6,$D$4:$D$12,0)),"",IF(RANK($D6,$D$4:$D$12,0)<=G$3,G$3,""))) -> 
E7: 0 | F7: =IF(ISBLANK(C7),"",MAX(F$4:F6)+1) -> 
E8: 0 | F8: =IF(ISBLANK(C8),"",MAX(F$4:F7)+1) -> 
E9: 0 | F9: =IF(ISBLANK(C9),"",MAX(F$4:F8)+1) -> 
E10: 0 | F10: =IF(ISBLANK(C10),"",MAX(F$4:F9)+1) -> 
E11: =IF(D$13 = 0, 0, D11/D$13) -> 0 | F11: =IF(ISBLANK(C11),"",MAX(F$4:F10)+1) -> 
E12: =IF(D$13 = 0, 0, D12/D$13) -> 0 | F12: =IF(ISBLANK(C12),"",MAX(F$4:F11)+1) -> 
B13: Total: | D13: =SUM(D4:D12) -> 69 | E13: =SUM(E4:E12) -> 1
C14: 1/5 of the vote => | D14: =D13 * 0.2 -> 13.8 | E14: 0.2
C15: 1/3 of the vote => | D15: =D13 * 0.33333333 -> 22.99999977 | E15: 0.3333
C16: 2/3 of the vote => | D16: =D13 * 0.66666666 -> 45.99999954 | E16: 0.6666

Sheet Position a
B3: Position: | C3: a | D3: votes | E3: percentage | G3: =MAX(F4:F12) -> 0 | H3: =IF(G3="","",IF(G3-1<=0,"",G3-1)) -> 
E4: =IF(D$13 = 0, 0, D4/D$13) -> 0 | F4: =IF(ISBLANK(C4),"",1) ->  | G4: =IF(ISBLANK($C4),"",IF(ISNA(RANK($D4,$D$4:$D$12,0)),"",IF(RANK($D4,$D$4:$D$12,0)<=G$3,G$3,""))) ->  | H4: =IF(ISBLANK($C4),"",IF(ISNA(RANK($D4,$D$4:$D$12,0)),"",IF(RANK($D4,$D$4:$D$12,0)<=H$3,H$3,""))) ->  | I4: =IF(ISBLANK($C4),"",IF(ISNA(RANK($D4,$D$4:$D$12,0)),"",IF(RANK($D4,$D$4:$D$12,0)<=I$3,I$3,""))) -> 
E5: 0 | F5: =IF(ISBLANK(C5),"",MAX(F$4:F4)+1) ->  | G5: =IF(ISBLANK($C5),"",IF(ISNA(RANK($D5,$D$4:$D$12,0)),"",IF(RANK($D5,$D$4:$D$12,0)<=G$3,G$3,""))) ->  | H5: =IF(ISBLANK($C5),"",IF(ISNA(RANK($D5,$D$4:$D$12,0)),"",IF(RANK($D5,$D$4:$D$12,0)<=H$3,H$3,""))) -> 
E6: 0 | F6: =IF(ISBLANK(C6),"",MAX(F$4:F5)+1) ->  | G6: =IF(ISBLANK($C6),"",IF(ISNA(RANK($D6,$D$4:$D$12,0)),"",IF(RANK($D6,$D$4:$D$12,0)<=G$3,G$3,""))) -> 
E7: 0 | F7: =IF(ISBLANK(C7),"",MAX(F$4:F6)+1) -> 
E8: 0 | F8: =IF(ISBLANK(C8),"",MAX(F$4:F7)+1) -> 
E9: 0 | F9: =IF(ISBLANK(C9),"",MAX(F$4:F8)+1) -> 
E10: 0 | F10: =IF(ISBLANK(C10),"",MAX(F$4:F9)+1) -> 
E11: =IF(D$13 = 0, 0, D11/D$13) -> 0 | F11: =IF(ISBLANK(C11),"",MAX(F$4:F10)+1) -> 
E12: =IF(D$13 = 0, 0, D12/D$13) -> 0 | F12: =IF(ISBLANK(C12),"",MAX(F$4:F11)+1) -> 
B13: Total: | D13: =SUM(D4:D12) -> 0 | E13: =SUM(E4:E12) -> 0
C14: 1/5 of the vote => | D14: =D13 * 0.2 -> 0 | E14: 0.2
C15: 1/3 of the vote => | D15: =D13 * 0.33333333 -> 0 | E15: 0.3333
C16: 2/3 of the vote => | D16: =D13 * 0.66666666 -> 0 | E16: 0.6666

Sheet Position b
B3: Position: | C3: b | D3: votes | E3: percentage | G3: =MAX(F4:F12) -> 0 | H3: =IF(G3="","",IF(G3-1<=0,"",G3-1)) -> 
E4: =IF(D$13 = 0, 0, D4/D$13) -> 0 | F4: =IF(ISBLANK(C4),"",1) ->  | G4: =IF(ISBLANK($C4),"",IF(ISNA(RANK($D4,$D$4:$D$12,0)),"",IF(RANK($D4,$D$4:$D$12,0)<=G$3,G$3,""))) ->  | H4: =IF(ISBLANK($C4),"",IF(ISNA(RANK($D4,$D$4:$D$12,0)),"",IF(RANK($D4,$D$4:$D$12,0)<=H$3,H$3,""))) ->  | I4: =IF(ISBLANK($C4),"",IF(ISNA(RANK($D4,$D$4:$D$12,0)),"",IF(RANK($D4,$D$4:$D$12,0)<=I$3,I$3,""))) -> 
E5: 0 | F5: =IF(ISBLANK(C5),"",MAX(F$4:F4)+1) ->  | G5: =IF(ISBLANK($C5),"",IF(ISNA(RANK($D5,$D$4:$D$12,0)),"",IF(RANK($D5,$D$4:$D$12,0)<=G$3,G$3,""))) ->  | H5: =IF(ISBLANK($C5),"",IF(ISNA(RANK($D5,$D$4:$D$12,0)),"",IF(RANK($D5,$D$4:$D$12,0)<=H$3,H$3,""))) -> 
E6: 0 | F6: =IF(ISBLANK(C6),"",MAX(F$4:F5)+1) ->  | G6: =IF(ISBLANK($C6),"",IF(ISNA(RANK($D6,$D$4:$D$12,0)),"",IF(RANK($D6,$D$4:$D$12,0)<=G$3,G$3,""))) -> 
E7: 0 | F7: =IF(ISBLANK(C7),"",MAX(F$4:F6)+1) -> 
E8: 0 | F8: =IF(ISBLANK(C8),"",MAX(F$4:F7)+1) -> 
E9: 0 | F9: =IF(ISBLANK(C9),"",MAX(F$4:F8)+1) -> 
E10: 0 | F10: =IF(ISBLANK(C10),"",MAX(F$4:F9)+1) -> 
E11: =IF(D$13 = 0, 0, D11/D$13) -> 0 | F11: =IF(ISBLANK(C11),"",MAX(F$4:F10)+1) -> 
E12: =IF(D$13 = 0, 0, D12/D$13) -> 0 | F12: =IF(ISBLANK(C12),"",MAX(F$4:F11)+1) -> 
B13: Total: | D13: =SUM(D4:D12) -> 0 | E13: =SUM(E4:E12) -> 0
C14: 1/5 of the vote => | D14: =D13 * 0.2 -> 0 | E14: 0.2
C15: 1/3 of the vote => | D15: =D13 * 0.33333333 -> 0 | E15: 0.3333
C16: 2/3 of the vote => | D16: =D13 * 0.66666666 -> 0 | E16: 0.6666

Sheet Position c
B3: Position: | C3: c | D3: votes | E3: percentage | G3: =MAX(F4:F12) -> 0 | H3: =IF(G3="","",IF(G3-1<=0,"",G3-1)) -> 
E4: =IF(D$13 = 0, 0, D4/D$13) -> 0 | F4: =IF(ISBLANK(C4),"",1) ->  | G4: =IF(ISBLANK($C4),"",IF(ISNA(RANK($D4,$D$4:$D$12,0)),"",IF(RANK($D4,$D$4:$D$12,0)<=G$3,G$3,""))) ->  | H4: =IF(ISBLANK($C4),"",IF(ISNA(RANK($D4,$D$4:$D$12,0)),"",IF(RANK($D4,$D$4:$D$12,0)<=H$3,H$3,""))) ->  | I4: =IF(ISBLANK($C4),"",IF(ISNA(RANK($D4,$D$4:$D$12,0)),"",IF(RANK($D4,$D$4:$D$12,0)<=I$3,I$3,""))) -> 
E5: 0 | F5: =IF(ISBLANK(C5),"",MAX(F$4:F4)+1) ->  | G5: =IF(ISBLANK($C5),"",IF(ISNA(RANK($D5,$D$4:$D$12,0)),"",IF(RANK($D5,$D$4:$D$12,0)<=G$3,G$3,""))) ->  | H5: =IF(ISBLANK($C5),"",IF(ISNA(RANK($D5,$D$4:$D$12,0)),"",IF(RANK($D5,$D$4:$D$12,0)<=H$3,H$3,""))) -> 
E6: 0 | F6: =IF(ISBLANK(C6),"",MAX(F$4:F5)+1) ->  | G6: =IF(ISBLANK($C6),"",IF(ISNA(RANK($D6,$D$4:$D$12,0)),"",IF(RANK($D6,$D$4:$D$12,0)<=G$3,G$3,""))) -> 
E7: 0 | F7: =IF(ISBLANK(C7),"",MAX(F$4:F6)+1) -> 
E8: 0 | F8: =IF(ISBLANK(C8),"",MAX(F$4:F7)+1) -> 
E9: 0 | F9: =IF(ISBLANK(C9),"",MAX(F$4:F8)+1) -> 
E10: 0 | F10: =IF(ISBLANK(C10),"",MAX(F$4:F9)+1) -> 
E11: =IF(D$13 = 0, 0, D11/D$13) -> 0 | F11: =IF(ISBLANK(C11),"",MAX(F$4:F10)+1) -> 
E12: =IF(D$13 = 0, 0, D12/D$13) -> 0 | F12: =IF(ISBLANK(C12),"",MAX(F$4:F11)+1) -> 
B13: Total: | D13: =SUM(D4:D12) -> 0 | E13: =SUM(E4:E12) -> 0
C14: 1/5 of the vote => | D14: =D13 * 0.2 -> 0 | E14: 0.2
C15: 1/3 of the vote => | D15: =D13 * 0.33333333 -> 0 | E15: 0.3333
C16: 2/3 of the vote => | D16: =D13 * 0.66666666 -> 0 | E16: 0.6666

Sheet 12 POSITIONS
A3: Twelve Positions | B3: Position: | C3: TWELFTH MAN | D3: votes | E3: percentage | G3: =MAX(F4:F15) -> 12 | H3: =IF(G3="","",IF(G3-1<=0,"",G3-1)) -> 11 | I3: 10 | J3: 9 | K3: 8 | L3: 7 | M3: 6 | N3: 5 | O3: 4 | P3: 3 | Q3: 2 | R3: 1
C4: TEST01 | D4: 2 | E4: =IF(D$16 = 0, 0, D4/D$16) -> 0.01694915254 | F4: =IF(ISBLANK(C4),"",1) -> 1 | G4: =IF(ISBLANK($C4),"",IF(ISNA(RANK($D4,$D$4:$D$15,0)),"",IF(RANK($D4,$D$4:$D$15,0)<=G$3,G$3,""))) -> 12 | H4: 11
C5: TEST02 | D5: 17 | E5: 0.1440677966 | F5: =IF(ISBLANK(C5),"",MAX(F$4:F4)+1) -> 2 | G5: =IF(ISBLANK($C5),"",IF(ISNA(RANK($D5,$D$4:$D$15,0)),"",IF(RANK($D5,$D$4:$D$15,0)<=G$3,G$3,""))) -> 12 | H5: 11 | I5: 10 | J5: 9 | K5: 8 | L5: 7 | M5: 6 | N5: 5 | O5: 4 | P5: 3 | Q5: 2 | R5: 1
C6: TEST03 | D6: 4 | E6: 0.03389830508 | F6: =IF(ISBLANK(C6),"",MAX(F$4:F5)+1) -> 3 | G6: 12 | H6: 11 | I6: 10
C7: TEST04 | D7: 16 | E7: 0.1355932203 | F7: =IF(ISBLANK(C7),"",MAX(F$4:F6)+1) -> 4 | G7: 12 | H7: 11 | I7: 10 | J7: 9 | K7: 8 | L7: 7 | M7: 6 | N7: 5 | O7: 4 | P7: 3 | Q7: 2
C8: TEST05 | D8: 6 | E8: 0.05084745763 | F8: =IF(ISBLANK(C8),"",MAX(F$4:F7)+1) -> 5 | G8: 12 | H8: 11 | I8: 10 | J8: 9
C9: TEST06 | D9: 15 | E9: 0.1271186441 | F9: =IF(ISBLANK(C9),"",MAX(F$4:F8)+1) -> 6 | G9: 12 | H9: 11 | I9: 10 | J9: 9 | K9: 8 | L9: 7 | M9: 6 | N9: 5 | O9: 4 | P9: 3
C10: TEST07 | D10: 8 | E10: 0.06779661017 | F10: =IF(ISBLANK(C10),"",MAX(F$4:F9)+1) -> 7 | G10: 12 | H10: 11 | I10: 10 | J10: 9 | K10: 8
C11: TEST08 | D11: 14 | E11: 0.1186440678 | F11: =IF(ISBLANK(C11),"",MAX(F$4:F10)+1) -> 8 | G11: 12 | H11: 11 | I11: 10 | J11: 9 | K11: 8 | L11: 7 | M11: 6 | N11: 5 | O11: 4
C12: TEST09 | D12: 10 | E12: 0.08474576271 | F12: =IF(ISBLANK(C12),"",MAX(F$4:F11)+1) -> 9 | G12: 12 | H12: 11 | I12: 10 | J12: 9 | K12: 8 | L12: 7
C13: TEST10 | D13: 13 | E13: 0.1101694915 | F13: =IF(ISBLANK(C13),"",MAX(F$4:F12)+1) -> 10 | G13: 12 | H13: 11 | I13: 10 | J13: 9 | K13: 8 | L13: 7 | M13: 6 | N13: 5
C14: TEST11 | D14: 12 | E14: 0.1016949153 | F14: =IF(ISBLANK(C14),"",MAX(F$4:F13)+1) -> 11 | G14: 12 | H14: 11 | I14: 10 | J14: 9 | K14: 8 | L14: 7 | M14: 6
C15: TEST12 | D15: 1 | E15: 0.008474576271 | F15: =IF(ISBLANK(C15),"",MAX(F$4:F14)+1) -> 12 | G15: 12
B16: Total: | D16: =SUM(D4:D15) -> 118 | E16: =SUM(E4:E15) -> 1
C17: 1/5 of the vote => | D17: =D16 * 0.2 -> 23.6 | E17: 0.2
C18: 1/3 of the vote => | D18: =D16 * 0.33333333 -> 39.33333294 | E18: 0.3333
C19: 2/3 of the vote => | D19: =D16 * 0.66666666 -> 78.66666588 | E19: 0.6666

Sheet Instructions
B1: This spreadsheet is intended as a tool that may be used to track votes submitted during an election process. It provides a means to display a graphical image for large group observation. Several worksheets are available should you choose to individually track multiple positions being voted on. Worksheet names and/or position titles may be changed as desired. Vote tally and percentages are atomatically updated as information is added. Here is how it works...
B2: BEFORE the vote tallying begins:
B3: 1 | C3: Select the desired position [Tab] OR type in a Position title (1)
B4: 2 | C4: Ensure pre-existing candidate names and votes are removed by clicking on [clear all] (2)
B5: 3 | C5: Type in each candidate's name - usually first name and last initial (3)
B6: DURING the vote tallying:
B7: 4 | C7: As each candidate name is called out, click on the applicable [ +1 ] button (4). IF you mistakenly add too many votes to a candidate, click on the applicable [Oops (-1)] button (5)
B8: 5 | C8: As votes are tallied, the votes, the percentage and the ranking chart automatically update. Also, at the bottom, the total votes as well as the number of votes required to fullfill varous voting percentages is automatically updated
B9: REPEAT VOTE tallying:
B10: 6 | C10: IF substantial unanimity is not achieved and another vote is required, click on the [clear votes] button (6). If candidates are elliminated during the voting process, select the desired candidate's name and click the keyboard <Delete> key
B11: AFTER the vote tallying:
B12: 7 | C12: Select the next applicable worksheet [Tab] (or stay with the same worksheet) and repeat the above process
B13: Note:
C14: Where more than 9 candidates are veing for a position, there is a 12 POSITIONS worksheet available
B16: The Third Legacy Procedure*: i. A candidate must receive 2/3 of the total vote to be elected. The results of each ballot will be posted. ii. After the second ballot, any candidate who received less than 1/5 of the total vote will be withdrawn, except the top two candidates must remain; in the event of a tie, all candidates tied for second place remain. iii. After the third ballot, any candidate who received less than 1/3 of the total vote will be withdrawn, except the top two candidates must remain; in the event of a tie, all candidates tied for second place remain. iv. After the fourth ballot: (1) The candidate with the smallest number of votes will be withdrawn, except the top two candidates must remain; in the event of a tie, all candidates tied for second place remain. (2) The chair will ask if there is a motion to go to a fifth ballot. (a) If such a motion is made and seconded, a simple majority will be needed to take the election to the fifth ballot. (b) In the absence of such a motion passing, the election will be decided by lot, that is, it “goes to the hat.” v. If no candidate receives 2/3 of the vote on the fifth ballot, the election will be decided by lot. vi. For example: If 100 votes are cast, 2/3 = 67 votes; 1/5 = 20 votes; 1/3 = 34 votes * from the AA Service Manual, pp. S20-S21. 10/24/2014
